fUSD/lending_fUSD_20250419
["ID","MTS","AMOUNT","RATE_DAILY","PERIOD"]
[358406204,1745071902018,1288.74,0.00013699,2]
[358406205,1745071902339,1288.74,0.00013699,2]
[358406206,1745071902761,1288.89685446,0.00013699,2]
[358406207,1745071924935,8684.39109309,0.00048597,30]
[358406208,1745071924989,159.12816743,0.00048597,120]
[358406209,1745072154166,1000.0,0.00048609,30]
[358406210,1745072154704,1000.0,0.00048609,30]
[358406211,1745072155250,1000.0,0.00048609,30]
[358406212,1745072155842,1000.0,0.00048609,30]
[358406213,1745072156369,1000.0,0.00048609,30]
[358406214,1745072156921,1000.0,0.00048609,30]
[358406215,1745072157461,1000.0,0.00048609,30]
[358406216,1745072158025,1000.0,0.00048609,30]
[358406217,1745072158553,1000.0,0.00048609,30]
[358406218,1745072159086,1000.0,0.00048609,30]
[358406219,1745072159795,1000.0,0.00048609,30]
[358406220,1745072160223,1000.0,0.00048609,30]
[358406221,1745072161030,1000.0,0.00048609,30]
[358406222,1745072161638,1000.0,0.00048609,30]
[358406223,1745072162222,1000.0,0.00048609,30]
[358406224,1745072162937,1000.0,0.00048609,30]
[358406225,1745072163507,1000.0,0.00048609,30]
[358406226,1745072164410,1000.0,0.00048609,30]
[358406227,1745072165059,1000.0,0.00048609,30]
[358406228,1745072165651,1000.0,0.00048609,30]
[358406229,1745072166251,1000.0,0.00048609,30]
[358406230,1745072166791,1000.0,0.00048609,30]
[358406231,1745072167338,1000.0,0.00048609,30]
[358406232,1745072167896,1000.0,0.00048609,30]
[358406233,1745072168554,1000.0,0.00048609,30]
[358406234,1745072169088,1000.0,0.00048609,30]
[358406235,1745072170035,1000.0,0.00048609,30]
[358406236,1745072173223,1000.0,0.00048609,30]
[358406237,1745072173822,1000.0,0.00048609,30]
[358406238,1745072174418,827.72987865,0.00048609,30]
[358406239,1745072292316,398.0,0.000438,30]
[358406240,1745072308965,628.695,0.00039859,56]
[358406241,1745072508458,5000.0,0.00048615,35]
[358406242,1745072515015,5000.0,0.00048615,36]
[358406243,1745072623834,630.710018,0.0002,2]
[358406244,1745072708496,8090.76039274,0.0002,2]
[358406245,1745072708523,426836.20834938,0.0002,2]
[358406246,1745072708916,1629.35109944,0.00048615,30]
[358406247,1745072710810,5029.10482799,0.000154,2]
[358406248,1745072710834,539.52539772,0.000154,2]
[358406249,1745072713100,209.23001637,0.00048615,91]
[358406250,1745072713160,193.36247548,0.00048615,30]
[358406251,1745072720092,233.61903642,0.00048615,120]
[358406252,1745072720228,5181.21164946,9e-05,2]
[358406253,1745072721907,688.88295327,0.00048615,120]
[358406254,1745072726475,991.95207033,0.000108,2]
[358406255,1745072728811,3287.31088249,0.00011,2]
[358406256,1745072728837,754.50848078,0.00011,2]
[358406257,1745072729052,350.76695176,0.00048615,30]
[358406258,1745072729629,276.46076318,0.00048615,30]
[358406259,1745072737711,9245.49151922,9e-05,2]
[358406260,1745072737732,10000.0,9e-05,2]
[358406261,1745072737754,1544.70877082,9e-05,2]
[358406262,1745072756793,8455.29122918,6.94e-05,2]
[358406263,1745072756815,8709.35797918,6.94e-05,2]
[358406264,1745072762722,177.23360715,0.00048615,90]
[358406265,1745072768751,1290.64202082,8e-05,2]
[358406266,1745072768772,1109.60755467,8e-05,2]
[358406267,1745072774899,499.20389494,0.00041813,30]
[358406269,1745072797439,150.0,0.00041813,30]
[358406271,1745072808691,150.0,0.00041813,30]
[358406272,1745072829367,6251.0,0.00048615,30]
[358406273,1745072834459,1680.98558289,0.00015,2]
[358406274,1745072838135,2110.03303145,0.00015,2]
[358406275,1745072839186,400.0,0.000193,7]
[358406276,1745072840140,-300.0,0.00019899,2]
[358406277,1745072840161,-546.3235718,0.000199,2]
[358406278,1745072840803,205.0,9.8e-05,2]
[358406279,1745072841471,800.0,0.000194,7]
[358406280,1745072843449,1200.0,0.000195,7]
[358406281,1745072844951,4894.37383099,0.0001305,2]
[358406282,1745072844974,259.93842033,0.0001305,2]
[358406283,1745072845558,1600.0,0.000196,7]
[358406284,1745072847652,2000.0,0.000197,7]
[358406285,1745072849744,400.0,0.000198,7]
[358406286,1745072851923,400.0,0.000199,7]
[358406287,1745072858931,323.00342189,0.00048615,120]
[358406289,1745072877462,324.6373356,0.00048615,120]
[358406290,1745072878262,4268.59069501,0.00013,2]
[358406291,1745072881405,5471.47088466,0.0001,2]
[358406292,1745072881427,1386.09701325,0.0001,2]
[358406293,1745072918105,398.13902149,0.00048615,30]
[358406294,1745072918447,1468.63690891,0.00048615,120]
[358406295,1745072918671,14494.80481344,0.00048615,120]
[358406296,1745072919204,161.94053804,0.00048615,30]
[358406297,1745072920839,153.86637133,0.00048615,120]
[358406298,1745072922288,1403.18698522,0.000149,2]
[358406299,1745072922368,761.7063701,0.00048615,120]
[358406300,1745072924098,284.47118775,0.00048615,120]
[358406301,1745072928134,338.52969887,0.000154,2]
[358406302,1745072928377,290.21323047,0.00048615,120]
[358406307,1745072932692,447.18314843,0.00013368,2]
[358406311,1745073003602,2000.0,0.0002,4]
[358406322,1745073031790,-732.08,0.00019789,2]
[358406323,1745073031800,-300.0,0.00019899,2]
[358406324,1745073031810,-31.36509394,0.00019899,2]
[358406343,1745073037763,-527.63490606,0.00019899,2]
[358406344,1745073037773,-250.0,0.000199,2]
[358406345,1745073037782,-7584.0420004,0.000199,2]
[358406346,1745073037792,-174.55279062,0.000199,2]
[358406347,1745073037802,-3612.63341556,0.000199,2]
[358406348,1745073037811,-311.1807639,0.000199,2]
[358406349,1745073037821,-331.01334453,0.00019973,2]
[358406350,1745073037831,-500.0,0.00019973,2]
[358406351,1745073037840,-500.0,0.00019973,2]
[358406352,1745073037850,-174.55279062,0.00019975,2]
[358406353,1745073037859,-383.24263963,0.0001999,2]
[358406354,1745073037868,-383.24263963,0.0001999,2]
[358406355,1745073037878,-383.24263963,0.0001999,2]
[358406356,1745073037887,-163.26123192,0.00019999,2]
[358406357,1745073037896,-286.69425217,0.00019999,2]
[358406358,1745073037905,-500.0,0.00019999,2]
[358406359,1745073037914,-666.0,0.00019999,2]
[358406360,1745073037924,-500.0,0.00019999,2]
[358406361,1745073037934,-666.0,0.00019999,2]
[358406362,1745073037944,-500.0,0.00019999,2]
[358406363,1745073037954,-500.0,0.00019999,2]
[358406364,1745073037967,-500.0,0.00019999,2]
[358406365,1745073037976,-500.0,0.00019999,2]
[358406366,1745073037986,-4824.94,0.00019999,2]
[358406367,1745073037996,-487.44335561,0.0002,2]
[358406368,1745073038006,-168551.53642906,0.0002,2]
[358406369,1745073038016,-146808.44910407,0.0002,2]
[358406370,1745073038030,-44666.94876239,0.0002,2]
[358406376,1745073039912,-71154.60312845,0.0002,2]
[358406377,1745073040136,-8868.54258935,0.0002,2]
[358406393,1745073045740,-41944.09345544,0.0002,2]
[358406394,1745073045812,-72909.18185661,0.0002,2]
[358406404,1745073396518,-166.86635937,0.00019899,2]
[358406405,1745073396546,-300.0,0.00019899,2]
[358406406,1745073396573,-553.8920024,0.000199,2]
[358406407,1745073396600,-689.64956504,0.000199,2]
[358406408,1745073396627,-2538.54795629,0.000199,2]
[358406409,1745073396653,-311.1807639,0.000199,2]
[358406410,1745073396682,-3612.63341556,0.000199,2]
[358406411,1745073396710,-250.0,0.0001995,2]
[358406412,1745073396738,-331.01334453,0.00019973,2]
[358406413,1745073396766,-500.0,0.00019973,2]
[358406414,1745073396794,-500.0,0.00019973,2]
[358406415,1745073396822,-500.0,0.00019999,2]
[358406416,1745073396849,-500.0,0.00019999,2]
[358406417,1745073396877,-500.0,0.00019999,2]
[358406418,1745073396903,-666.0,0.00019999,2]
[358406419,1745073396931,-500.0,0.00019999,2]
[358406420,1745073396957,-666.0,0.00019999,2]
[358406421,1745073396984,-500.0,0.00019999,2]
[358406422,1745073397011,-666.0,0.00019999,2]
[358406423,1745073397039,-500.0,0.00019999,2]
[358406424,1745073397067,-500.0,0.00019999,2]
[358406425,1745073397094,-500.0,0.00019999,2]
[358406426,1745073397122,-666.0,0.00019999,2]
[358406427,1745073397148,-4816.95,0.00019999,2]
[358406428,1745073397174,-487.44335561,0.0002,2]
[358406429,1745073397204,-168551.53642906,0.0002,2]
[358406430,1745073398035,-209835.36524296,0.0002,2]
[358406431,1745073421572,-665440.91,0.0002,2]
[358406432,1745073509041,502.957,0.000422,63]
[358406433,1745073559349,250.0,0.00017,2]
[358406434,1745073560442,300.0,0.00019,2]
[358406435,1745073626096,12000.0,0.00048628,30]
[358406436,1745073794082,500.0,0.00048628,120]
[358406437,1745073820139,500.0,0.00048628,120]
[358406438,1745073829228,500.0,0.00048628,120]
[358406440,1745074150294,2327.48903751,0.00018,2]
[358406441,1745074154469,150.0,0.000211,10]
[358406443,1745074209513,150.0,0.000211,10]
[358406444,1745074231743,-502.956,0.000196,2]
[358406445,1745074231752,-250.0,0.00019675,2]
[358406446,1745074231762,-300.0,0.00019899,2]
[358406447,1745074231771,-553.8920024,0.000199,2]
[358406448,1745074231781,-231.60285126,0.000199,2]
[358406449,1745074231864,-8.63486921,0.000199,2]
[358406450,1745074231873,-207.4538426,0.000199,2]
[358406451,1745074231882,-404.18053823,0.000199,2]
[358406452,1745074231893,-1227.364,0.000199,2]
[358406453,1745074231905,-60.82076595,0.000199,2]
[358406454,1745074232061,-500.0,0.00019973,2]
[358406455,1745074232072,-239.17923405,0.0001999,2]
[358406456,1745074232084,-144.06340558,0.0001999,2]
[358406457,1745074232093,-383.24263963,0.0001999,2]
[358406458,1745074232103,-383.24263963,0.0001999,2]
[358406459,1745074232112,-500.0,0.00019999,2]
[358406460,1745074232122,-500.0,0.00019999,2]
[358406461,1745074232131,-500.0,0.00019999,2]
[358406463,1745074232140,-500.0,0.00019999,2]
[358406465,1745074232150,-666.0,0.00019999,2]
[358406467,1745074232159,-500.0,0.00019999,2]
[358406469,1745074232169,-500.0,0.00019999,2]
[358406471,1745074232178,-500.0,0.00019999,2]
[358406473,1745074232187,-243.7216778,0.0002,2]
[358406475,1745074232197,-12496.7184894,0.0002,2]
[358406477,1745074232209,-417.23211723,0.0002,2]
[358406479,1745074232220,-5023.00535554,0.0002,2]
[358406482,1745074232232,-5521.75740835,0.0002,2]
[358406486,1745074232246,-7112.8037336,0.0002,2]
[358406559,1745074237896,-17173.47839999,0.0002,2]
[358406560,1745074238067,-7781.0000001,0.0002,2]
[358406561,1745074238080,-28749.77271033,0.0002,2]
[358406562,1745074238089,-303458.21268662,0.0002,2]
[358406563,1745074238166,-1357.36621302,0.0002,2]
[358406564,1745074238189,-1105.0,0.0002,2]
[358406571,1745074240051,-4292.817719,0.0002,2]
[358406572,1745074240298,-346206.23832425,0.0002,2]
[358406573,1745074240309,-400.73000002,0.0002,2]
[358406574,1745074240345,-8425.64999999,0.0002,2]
[358406575,1745074240356,-1950.0,0.0002,2]
[358406576,1745074240367,-2100.05512954,0.0002,2]
[358406577,1745074240379,-4128.97177876,0.0002,2]
[358406578,1745074240391,-606.05829084,0.0002,2]
[358406579,1745074240403,-2185.12290278,0.0002,2]
[358406580,1745074240414,-786.11106661,0.0002,2]
[358406581,1745074240429,-2052.77104599,0.0002,2]
[358406582,1745074240680,-34430.93862785,0.0002,2]
[358406583,1745074240693,-587948.40305955,0.0002,2]
[358406584,1745074240704,-447.72946,0.0002,2]
[358406604,1745074242939,-1675.46233808,0.0002,2]
[358406606,1745074244842,-863.786817,0.0002,2]
[358406611,1745074245869,-346.27829571,0.0002,2]
[358406612,1745074245930,-1123.38609539,0.0002,2]
[358406613,1745074245942,-689.63270231,0.0002,2]
[358406614,1745074246139,-3000.0,0.0002,2]
[358406622,1745074260029,150.0,0.000211,10]
[358406623,1745074329208,234.71,0.00019001,2]
[358406624,1745074677782,258.0,0.00048638,120]
[358406625,1745074708989,301.774,0.00039883,56]
[358406626,1745075083019,500.0,0.00048636,120]
[358406627,1745075083242,500.0,0.00048636,120]
[358406628,1745075083473,500.0,0.00048636,120]
[358406629,1745075083699,500.0,0.00048636,120]
[358406630,1745075084324,184.68013325,0.00048636,120]
[358406633,1745075162709,250.60637038,0.0002467,30]
[358406634,1745075166502,150.0,0.0002467,30]
[358406635,1745075177147,435.87016776,0.0002467,30]
[358406636,1745075312906,1500.0,0.00048636,30]
[358406637,1745075370453,2000.0,0.00048636,30]
[358406638,1745075371161,150.16108,0.00048636,120]
[358406639,1745075373801,250.0,0.00017,2]
[358406640,1745075374864,300.0,0.00019,2]
[358406646,1745075432096,-300.0,0.00019799,2]
[358406647,1745075432106,-743.81180349,0.000198,2]
[358406648,1745075432219,-717.14637867,0.000198,2]
[358406649,1745075432254,-2908.92614781,0.000198,2]
[358406676,1745075438413,-36750.25359748,0.000198,2]
[358406677,1745075438424,-281.57822874,0.000198,2]
[358406678,1745075438434,-205.91804616,0.000199,2]
[358406679,1745075438444,-553.8920024,0.000199,2]
[358406680,1745075438454,-161.89355359,0.00019973,2]
[358406681,1745075438464,-500.0,0.00019973,2]
[358406682,1745075438475,-1760.95818216,0.00019976,2]
[358406683,1745075438485,-286.69425217,0.00019985,2]
[358406684,1745075438493,-205.243688,0.00019985,2]
[358406685,1745075438501,-6737.01057,0.00019986,2]
[358406686,1745075438508,-478.86889129,0.0001999,2]
[358406687,1745075438516,-478.86889129,0.0001999,2]
[358406688,1745075438524,-478.86889129,0.0001999,2]
[358406689,1745075438532,-500.0,0.00019999,2]
[358406690,1745075438540,-500.0,0.00019999,2]
[358406691,1745075438549,-500.0,0.00019999,2]
[358406692,1745075438557,-500.0,0.00019999,2]
[358406693,1745075438564,-500.0,0.00019999,2]
[358406694,1745075438572,-243.7216778,0.0002,2]
[358406695,1745075438579,-56512.77046243,0.0002,2]
[358406696,1745075438588,-3785999.26186332,0.0002,2]
[358406697,1745075438597,-332207.98539695,0.0002,2]
[358406833,1745075440284,-253.63429946,0.0002,2]
[358406834,1745075440697,-587948.40305955,0.0002,2]
[358406885,1745075446531,-5999.59622604,0.0002,2]
[358406941,1745075746404,1000.0,0.00048683,30]
[358406942,1745075909011,241.419,0.000422,63]
[358406943,1745075917907,500.0,0.000246,30]
[358406944,1745076265442,500.0,0.00041096,120]
[358406948,1745076517770,168288.47908303,0.0004,30]
[358406959,1745076631059,1000.0,0.00048688,30]
[358407035,1745076638468,-241.419,0.000196,2]
[358407036,1745076638484,-250.0,0.0001975,2]
[358407037,1745076638498,-1128.24353612,0.000199,2]
[358407038,1745076638510,-1441.42632276,0.000199,2]
[358407039,1745076638526,-414.9076852,0.000199,2]
[358407040,1745076638541,-248.48150976,0.000199,2]
[358407041,1745076638555,-553.8920024,0.000199,2]
[358407042,1745076638571,-1128.24353612,0.00019937,2]
[358407043,1745076638585,-300.0,0.00019972,2]
[358407044,1745076638601,-995.0,0.00019973,2]
[358407045,1745076638616,-161.89355359,0.00019973,2]
[358407046,1745076638630,-500.0,0.00019973,2]
[358407047,1745076638644,-1128.24353612,0.00019973,2]
[358407048,1745076638658,-9067.6755248,0.00019986,2]
[358407049,1745076638676,-1760.95818216,0.0001999,2]
[358407050,1745076638692,-1500.28,0.0001999,2]
[358407051,1745076638704,-1500.28,0.0001999,2]
[358407052,1745076638716,-478.86889129,0.0001999,2]
[358407053,1745076638735,-478.86889129,0.0001999,2]
[358407054,1745076638748,-478.86889129,0.0001999,2]
[358407055,1745076638759,-286.69425217,0.00019999,2]
[358407056,1745076638772,-205.243688,0.00019999,2]
[358407057,1745076638785,-500.0,0.00019999,2]
[358407058,1745076638797,-500.0,0.00019999,2]
[358407059,1745076638811,-500.0,0.00019999,2]
[358407060,1745076638826,-500.0,0.00019999,2]
[358407061,1745076638839,-152.09289653,0.00019999,2]
[358407062,1745076638852,-243.7216778,0.0002,2]
[358407063,1745076638866,-3856.95673782,0.0002,2]
[358407065,1745076639018,-52655.81372461,0.0002,2]
[358407066,1745076639032,-1175030.25750461,0.0002,2]
[358407067,1745076639044,-300.80617495,0.0002,2]
[358407068,1745076639058,-1480.48547334,0.0002,2]
[358407069,1745076639069,-2627636.60809439,0.0002,2]
[358407070,1745076639085,-44062.4084871,0.0002,2]
[358407071,1745076639098,-443.68525554,0.0002,2]
[358407072,1745076639111,-202.897154,0.0002,2]
[358407073,1745076639124,-500.0,0.0002,2]
[358407074,1745076639142,-500.0,0.0002,2]
[358407075,1745076639155,-495.0,0.0002,2]
[358407076,1745076639169,-18023.7672643,0.0002,2]
[358407077,1745076639182,-598.584841,0.0002,2]
[358407078,1745076639196,-267381.64239501,0.0002,2]
[358407079,1745076639218,-17060.0,0.0002,2]
[358407080,1745076639245,-236795.53706012,0.0002,2]
[358407083,1745076640567,-350.02500016,0.0002,2]
[358407085,1745076641249,-3804.26942366,0.0002,2]
[358407086,1745076641290,-341604.44283292,0.0002,2]
[358407093,1745076643405,-19084.72490558,0.0002,2]
[358407094,1745076643458,-790.19,0.0002,2]
[358407095,1745076643734,-1.68079431,0.0002,2]
[358407105,1745076646531,-665.99059365,0.000199,2]
[358407106,1745076646541,-30583.39960697,0.0002,2]
[358407107,1745076646553,-4620.16175024,0.0002,2]
[358407109,1745076680756,1032.44210214,0.00048688,120]
[358407110,1745076721537,250.0,0.00019993,5]
[358407112,1745076964006,212.4617084,0.000372,120]
[358407113,1745077082962,250.0,0.00019893,5]
[358407114,1745077186936,250.0,0.00017,2]
[358407115,1745077188007,300.0,0.00019,2]
[358407116,1745077203847,250.0,0.00019743,5]
[358407117,1745077227019,159.67,0.0003265,120]
[358407118,1745077383296,150.0,0.00048687,30]
[358407119,1745077572527,250.0,0.00019395,2]
[358407120,1745077579651,184.09,0.00016712,2]
[358407121,1745077742453,182.5,0.00027425,30]
[358407122,1745077797551,200.0,0.00016027,2]
[358407123,1745077831449,-181.064,0.000196,2]
[358407124,1745077831460,-189.76371607,0.00019885,2]
[358407125,1745077831469,-427.50027211,0.00019885,2]
[358407126,1745077831527,-291.21731343,0.00019885,2]
[358407127,1745077831537,-718.71758552,0.00019886,2]
[358407128,1745077831546,-189.76371607,0.000199,2]
[358407129,1745077831556,-159.17867154,0.000199,2]
[358407130,1745077831565,-500.0,0.00019973,2]
[358407131,1745077831575,-348.32631817,0.00019973,2]
[358407132,1745077831585,-300.0,0.00019985,2]
[358407133,1745077831594,-300.0,0.00019985,2]
[358407134,1745077831604,-3538.39591436,0.00019986,2]
[358407135,1745077831701,-269.41592484,0.00019986,2]
[358407136,1745077831711,-2293.5562404,0.00019986,2]
[358407137,1745077831720,-237.40190885,0.00019999,2]
[358407139,1745077837610,-262.59809115,0.00019999,2]
[358407140,1745077837620,-500.0,0.00019999,2]
[358407141,1745077837630,-500.0,0.00019999,2]
[358407142,1745077837640,-688.0,0.0002,2]
[358407143,1745077837649,-22397.48940216,0.0002,2]
[358407144,1745077837661,-2762.07936291,0.0002,2]
[358407145,1745077837672,-29424.72332845,0.0002,2]
[358407146,1745077837682,-3827679.24764345,0.0002,2]
[358407147,1745077837693,-332207.98539695,0.0002,2]
[358407148,1745077837705,-23505.40871923,0.0002,2]
[358407149,1745077837716,-841.90522841,0.0002,2]
[358407150,1745077837727,-261.92,0.0002,2]
[358407151,1745077837788,-5390.68405097,0.0002,2]
[358407152,1745077837803,-1620.20000006,0.0002,2]
[358407153,1745077837831,-47641.17697788,0.0002,2]
[358407154,1745077837843,-892.581,0.0002,2]
[358407155,1745077837854,-17537.3442,0.0002,2]
[358407156,1745077837865,-5654.65517798,0.0002,2]
[358407157,1745077837894,-570.13742456,0.0002,2]
[358407166,1745077839857,-1691.63592498,0.0002,2]
[358407167,1745077839896,-8527.38767104,0.0002,2]
[358407168,1745077839907,-3191.39276772,0.0002,2]
[358407169,1745077839939,-72932.77553512,0.0002,2]
[358407170,1745077839951,-341.86579367,0.0002,2]
[358407171,1745077839962,-368.16999,0.0002,2]
[358407172,1745077840149,-347.59491113,0.0002,2]
[358407173,1745077840161,-1101.075001,0.0002,2]
[358407174,1745077840172,-526.18987295,0.0002,2]
[358407195,1745077842475,-1300.45181074,0.0002,2]
[358407196,1745077842550,-67349.80379475,0.0002,2]
[358407197,1745077842563,-165937.88284071,0.0002,2]
[358407198,1745077842622,-604.79948188,0.0002,2]
[358407199,1745077844522,-8004.96087241,0.0002,2]
[358407200,1745077844625,-3963.00224593,0.0002,2]
[358407201,1745077844640,-814.21582,0.0002,2]
[358407202,1745077844651,-25171.62942325,0.0002,2]
[358407203,1745077845766,-623.0,0.0002,2]
[358407204,1745077845777,-6798.37047021,0.0002,2]
[358407205,1745077845790,-4141.97292048,0.0002,2]
[358407206,1745077845802,-1190.71399994,0.0002,2]
[358407207,1745077845813,-1872.2,0.0002,2]
[358407208,1745077845986,-284.63379487,0.0002,2]
[358407209,1745077895233,170.61,0.00017469,2]
[358407210,1745078068252,500.0,0.00048688,120]
[358407211,1745078068502,500.0,0.00048688,120]
[358407212,1745078069015,500.0,0.00048688,120]
[358407213,1745078069143,500.0,0.00048688,120]
[358407214,1745078599583,766.0,0.00043,30]
[358407215,1745078677045,208.57,0.00016712,2]
[358407216,1745078830128,-1241.43,0.00019601,2]
[358407217,1745078830149,-1859.17651444,0.000197,2]
[358407218,1745078830171,-760.74,0.00019893,2]
[358407219,1745078830192,-1262.9484,0.000199,2]
[358407220,1745078830213,-182.7003,0.000199,2]
[358407221,1745078830234,-519.0,0.00019973,2]
[358407222,1745078830258,-295.87968766,0.00019973,2]
[358407223,1745078830282,-300.0,0.00019985,2]
[358407224,1745078830305,-300.0,0.00019985,2]
[358407225,1745078830329,-6003.4962183,0.00019986,2]
[358407226,1745078830352,-899.44694075,0.00019986,2]
[358407227,1745078981334,1394.15,0.00048686,30]
[358407228,1745079002385,250.0,0.00017,2]
[358407229,1745079003474,300.0,0.00019,2]
[358407232,1745079031636,-648.025503,0.00019786,2]
[358407233,1745079031646,-243.11719965,0.00019886,2]
[358407234,1745079031655,-300.0,0.00019899,2]
[358407235,1745079031665,-491.66821304,0.000199,2]
[358407236,1745079031676,-469.9405751,0.000199,2]
[358407237,1745079031687,-1056.39,0.000199,2]
[358407238,1745079031706,-742.01575815,0.000199,2]
[358407239,1745079031717,-762.17542217,0.000199,2]
[358407240,1745079031732,-14368.29783154,0.000199,2]
[358407241,1745079031742,-19519.42445608,0.000199,2]
[358407242,1745079031751,-704.0413,0.000199,2]
[358407243,1745079031761,-259.1533,0.000199,2]
[358407244,1745079031770,-8034.02935963,0.000199,2]
[358407245,1745079031783,-1334.0,0.000199,2]
[358407246,1745079031795,-1807.329251,0.000199,2]
[358407247,1745079031807,-527.22235995,0.000199,2]
[358407248,1745079036320,-200.68597652,0.00019899,2]
[358407249,1745079036330,-203.56732243,0.00019899,2]
[358407250,1745079036341,-260.65899905,0.000199,2]
[358407251,1745079036387,-1209.1542531,0.000199,2]
[358407252,1745079036435,-64350.64490796,0.000199,2]
[358407253,1745079036467,-520.59153593,0.000199,2]
[358407289,1745079037896,-7807.65736045,0.000199,2]
[358407290,1745079037908,-407.78855992,0.000199,2]
[358407291,1745079037925,-8008.0,0.000199,2]
[358407292,1745079037950,-808.33533612,0.000199,2]
[358407293,1745079037990,-3460.04745525,0.000199,2]
[358407294,1745079038000,-2738.3005,0.000199,2]
[358407295,1745079038010,-223.87007419,0.00019973,2]
[358407296,1745079038019,-501.87216249,0.00019973,2]
[358407297,1745079038028,-500.0,0.00019973,2]
[358407298,1745079038038,-170.84190683,0.00019973,2]
[358407299,1745079038049,-500.0,0.00019973,2]
[358407300,1745079038060,-300.0,0.00019985,2]
[358407301,1745079038071,-3897.95881555,0.00019986,2]
[358407302,1745079038080,-18011.7228546,0.00019986,2]
[358407303,1745079038091,-5655.6307366,0.00019986,2]
[358407304,1745079038101,-18023.7672643,0.00019986,2]
[358407305,1745079038111,-500.0,0.00019999,2]
[358407306,1745079038121,-500.0,0.00019999,2]
[358407307,1745079038132,-500.0,0.00019999,2]
[358407308,1745079038142,-181.064,0.00019999,2]
[358407309,1745079038152,-9657.79,0.00019999,2]
[358407310,1745079038161,-554.0,0.0002,2]
[358407311,1745079038171,-42004.50771099,0.0002,2]
[358407312,1745079038181,-3749222.5974911,0.0002,2]
[358407313,1745079038193,-332207.98539695,0.0002,2]
[358407314,1745079038204,-656.04999995,0.0002,2]
[358407315,1745079038215,-14159.43070995,0.0002,2]
[358407316,1745079039455,-404181.07329145,0.0002,2]
[358407317,1745079039470,-385182.95146914,0.0002,2]
[358407319,1745079039813,-3188.98126082,0.0002,2]
[358407320,1745079040053,-685.04570316,0.0002,2]
[358407321,1745079040118,-2835.34637412,0.0002,2]
[358407322,1745079040131,-1711.73247051,0.0002,2]
[358407376,1745079044741,-5883.52751136,0.0002,2]
[358407377,1745079044757,-7855.19516512,0.0002,2]
[358407378,1745079044768,-127651.43042663,0.0002,2]
[358407379,1745079044780,-1500.0,0.0002,2]
[358407380,1745079044791,-3500.0,0.0002,2]
[358407381,1745079044803,-648.02550246,0.0002,2]
[358407392,1745079045766,-738.0,0.0002,2]
[358407393,1745079045775,-166222.36867663,0.0002,2]
[358407394,1745079045979,-2277.23637983,0.0002,2]
[358407395,1745079045991,-8524.92475953,0.0002,2]
[358407396,1745079046044,-800.0,0.0002,2]
[358407397,1745079099376,153.32,0.00043836,30]
[358407398,1745079123995,500.0,0.00048686,120]
[358407399,1745079124460,200.0,0.00048686,120]
[358407400,1745079124608,518.5,0.00048686,120]
[358407401,1745079125115,207.4,0.00048686,120]
[358407402,1745079125244,537.6845,0.00048686,120]
[358407403,1745079125844,215.0738,0.00048686,120]
[358407404,1745079125882,537.6845,0.00048686,120]
[358407405,1745079126524,223.0315306,0.00048686,120]
[358407406,1745079127125,231.28369723,0.00048686,120]
[358407407,1745079127966,239.84119403,0.00048686,120]